[Event "57th Biel Festival MTO 2024"]
[White "Emmenecker,Pierre-Antoine"]
[Black "Arbinger,Roland"]
[Site "Biel"]
[Round "1.49"]
[Annotator "RC"]
[Result "1-0"]
[Date "2024.07.15"]
[WhiteElo "2306"]
[BlackElo "2013"]
[PlyCount "99"]
[TimeControl "60"]

1. e4 {[%emt 0:0:2]} d5 {[%emt 0:0:28]} 2. exd5 {[%emt 0:0:6]} Qxd5 {[%emt 0:0:8]} 3. Nc3 {[%emt 0:0:7]} Qd6 {[%emt 0:0:10]} 4. g3 {[%emt 0:0:23]} Nf6 {[%emt 0:0:13]} 5. Bg2 {[%emt 0:0:42]} g6 {[%emt 0:0:27]} 6. Nf3 {[%emt 0:1:22]} Bg7 {[%emt 0:0:19]} 7. O-O {[%emt 0:0:37]} O-O {[%emt 0:0:15]} 8. Re1 {[%emt 0:9:50]} Bg4 {[%emt 0:2:1]} 9. d4 {[%emt 0:22:10]} c6 {[%emt 0:3:50]} 10. Bf4 {[%emt 0:22:45]} Qd8 {[%emt 0:1:22]} 11. Qd2 {[%emt 0:6:25]} Bxf3 {[%emt 0:8:31]} 12. Bxf3 {[%emt 0:0:18]} e6 {[%emt 0:0:17]} 13. h4 {[%emt 0:6:38]} Nbd7 {[%emt 0:5:54]} 14. Rad1 {[%emt 0:5:19]} Nb6 {[%emt 0:1:18]} 15. Qe2 {[%emt 0:7:22]} Nbd5 {[%emt 0:3:49]} 16. Nxd5 {[%emt 0:1:50]} cxd5 {[%emt 0:0:31]} 17. c4 {[%emt 0:9:0]} Rc8 {[%emt 0:1:8]} 18. c5 {[%emt 0:0:54]} Qd7 {[%emt 0:2:56]} 19. b4 {[%emt 0:2:4]} a6 {[%emt 0:1:15]} 20. Qc2 {[%emt 0:1:16]} Ra8 {[%emt 0:1:38]} 21. a4 {[%emt 0:0:35]} Rfc8 {[%emt 0:0:30]} 22. Qb3 {[%emt 0:1:41]} Ne8 {[%emt 0:2:38]} 23. Re2 {[%emt 0:1:22]} Nc7 {[%emt 0:5:22]} 24. Rc2 {[%emt 0:1:8]} f6 {[%emt 0:6:1]} 25. Be3 {[%emt 0:3:0]} Kh8 {[%emt 0:5:0]} 26. Rdc1 {[%emt 0:0:52]} Qe8 {[%emt 0:4:20]} 27. Be2 {[%emt 0:1:21]} e5 {[%emt 0:2:52]} 28. dxe5 {[%emt 0:2:22]} fxe5 {[%emt 0:0:4]} 29. Bg4 {[%emt 0:0:16]} d4 {[%emt 0:3:4]} 30. Bg5 {[%emt 0:1:36]} h6 {[%emt 0:0:26]} 31. Bxc8 {[%emt 0:0:45]} Qxc8 {[%emt 0:1:28]} 32. c6 {[%emt 0:0:50]} b6 {[%emt 0:0:35]} 33. Be7 {[%emt 0:1:0]} e4 {[%emt 0:1:51]} 34. Qf7 {[%emt 0:0:47]} Qf5 {[%emt 0:4:57]} 35. Qxf5 {[%emt 0:0:6]} gxf5 {[%emt 0:0:2]} 36. Bd6 {[%emt 0:0:50]} Nd5 {[%emt 0:2:2]} 37. c7 {[%emt 0:0:11]} Rc8 {[%emt 0:0:1]} 38. Rc6 {[%emt 0:0:24]} d3 {[%emt 0:0:41]} 39. a5 {[%emt 0:0:50]} Bd4 {[%emt 0:2:5]} 40. axb6 {[%emt 0:0:38]} Bxb6 {[%emt 0:9:45]} 41. Be5+ {[%emt 0:19:38]} Kh7 {[%emt 0:2:36]} 42. Rd6 {[%emt 0:6:33]} e3 {[%emt 0:22:13]} 43. Rxd5 {[%emt 0:2:57]} d2 {[%emt 0:0:22]} 44. Rb1 {[%emt 0:4:28]} Bxc7 {[%emt 0:0:32]} 45. Rd7+ {[%emt 0:0:48]} Kg6 {[%emt 0:0:21]} 46. Bxc7 {[%emt 0:0:44]} Rxc7 {[%emt 0:0:17]} 47. Rxc7 {[%emt 0:0:33]} e2 {[%emt 0:0:12]} 48. Rcc1 {[%emt 0:0:5]} f4 {[%emt 0:0:35]} 49. gxf4 {[%emt 0:0:18]} Kf5 {[%emt 0:0:7]} 50. Rd1 {[%emt 0:0:21]} 1-0

[Event "57th Biel Festival MTO 2024"]
[White "Tellarini,Lorenzo"]
[Black "Jain Kashish Manoj"]
[Site "Biel"]
[Round "1.50"]
[Annotator "RC"]
[Result "1/2-1/2"]
[Date "2024.07.15"]
[WhiteElo "1953"]
[BlackElo "2308"]
[PlyCount "73"]
[TimeControl "60"]

1. e4 {[%emt 0:0:2]} c5 {[%emt 0:0:20]} 2. Nf3 {[%emt 0:0:4]} d6 {[%emt 0:0:9]} 3. Bb5+ {[%emt 0:0:4]} Nd7 {[%emt 0:0:10]} 4. d4 {[%emt 0:0:4]} cxd4 {[%emt 0:1:10]} 5. Qxd4 {[%emt 0:0:6]} a6 {[%emt 0:2:19]} 6. Bxd7+ {[%emt 0:0:20]} Bxd7 {[%emt 0:0:8]} 7. c4 {[%emt 0:0:51]} e5 {[%emt 0:6:59]} 8. Qd3 {[%emt 0:0:34]} b5 {[%emt 0:17:21]} 9. Nfd2 {[%emt 0:2:21]} Nf6 {[%emt 0:2:41]} 10. Nc3 {[%emt 0:0:28]} Qb6 {[%emt 0:16:9]} 11. O-O {[%emt 0:3:22]} Be7 {[%emt 0:2:53]} 12. b3 {[%emt 0:5:3]} O-O {[%emt 0:5:31]} 13. a4 {[%emt 0:3:23]} Qd4 {[%emt 0:21:14]} 14. Qxd4 {[%emt 0:4:6]} exd4 {[%emt 0:0:22]} 15. Ne2 {[%emt 0:2:53]} bxa4 {[%emt 0:0:7]} 16. bxa4 {[%emt 0:1:9]} Bd8 {[%emt 0:15:3]} 17. Nxd4 {[%emt 0:3:13]} Re8 {[%emt 0:0:7]} 18. f3 {[%emt 0:5:17]} Rb8 {[%emt 0:1:42]} 19. Ba3 {[%emt 0:8:21]} Bb6 {[%emt 0:1:44]} 20. N2b3 {[%emt 0:2:57]} Ba7 {[%emt 0:5:22]} 21. c5 {[%emt 0:0:52]} Bxa4 {[%emt 0:1:21]} 22. Na5 {[%emt 0:2:0]} Bb5 {[%emt 0:7:39]} 23. Nxb5 {[%emt 0:4:7]} Rxb5 {[%emt 0:0:2]} 24. Nc6 {[%emt 0:0:38]} Bxc5+ {[%emt 0:0:9]} 25. Bxc5 {[%emt 0:0:19]} dxc5 {[%emt 0:1:35]} 26. Rxa6 {[%emt 0:0:11]} c4 {[%emt 0:0:31]} 27. Ra5 {[%emt 0:1:25]} Rxa5 {[%emt 0:0:22]} 28. Nxa5 {[%emt 0:0:7]} Rc8 {[%emt 0:0:22]} 29. Rc1 {[%emt 0:1:1]} c3 {[%emt 0:0:1]} 30. Nb3 {[%emt 0:3:3]} Nh5 {[%emt 0:1:16]} 31. g3 {[%emt 0:2:20]} g6 {[%emt 0:0:5]} 32. Nd4 {[%emt 0:0:44]} Nf6 {[%emt 0:0:42]} 33. Rc2 {[%emt 0:1:53]} Nd7 {[%emt 0:0:46]} 34. Ne2 {[%emt 0:2:14]} Ne5 {[%emt 0:0:21]} 35. Kg2 {[%emt 0:1:3]} Rb8 {[%emt 0:0:44]} 36. Rxc3 {[%emt 0:1:7]} Rb2 {[%emt 0:0:6]} 37. Kf2 {[%emt 0:1:39]} 1/2-1/2

[Event "57th Biel Festival MTO 2024"]
[White "Gloeckler,Christian"]
[Black "Douguet,Claude"]
[Site "Biel"]
[Round "1.51"]
[Annotator "RC"]
[Result "1-0"]
[Date "2024.07.15"]
[WhiteElo "2304"]
[BlackElo "1994"]
[PlyCount "73"]
[TimeControl "60"]

1. e4 {[%emt 0:0:2]} e5 {[%emt 0:0:3]} 2. Nf3 {[%emt 0:0:9]} Nc6 {[%emt 0:0:2]} 3. Bb5 {[%emt 0:0:14]} Nf6 {[%emt 0:0:4]} 4. O-O {[%emt 0:0:30]} Nxe4 {[%emt 0:0:4]} 5. Re1 {[%emt 0:0:13]} Nd6 {[%emt 0:0:6]} 6. Nxe5 {[%emt 0:0:10]} Be7 {[%emt 0:0:32]} 7. Bf1 {[%emt 0:0:9]} O-O {[%emt 0:0:14]} 8. Nf3 {[%emt 0:0:49]} Nf5 {[%emt 0:8:55]} 9. d4 {[%emt 0:0:35]} d5 {[%emt 0:0:45]} 10. a4 {[%emt 0:0:15]} Bf6 {[%emt 0:4:44]} 11. c3 {[%emt 0:0:11]} Re8 {[%emt 0:8:11]} 12. Rxe8+ {[%emt 0:3:10]} Qxe8 {[%emt 0:0:2]} 13. Bf4 {[%emt 0:0:14]} Qe7 {[%emt 0:5:4]} 14. a5 {[%emt 0:2:41]} a6 {[%emt 0:1:9]} 15. b4 {[%emt 0:1:35]} g6 {[%emt 0:4:25]} 16. Bd3 {[%emt 0:2:30]} Nd6 {[%emt 0:2:21]} 17. Nbd2 {[%emt 0:2:53]} Bf5 {[%emt 0:2:11]} 18. Bxd6 {[%emt 0:1:9]} Qxd6 {[%emt 0:0:2]} 19. Bxf5 {[%emt 0:0:16]} gxf5 {[%emt 0:0:1]} 20. Qc2 {[%emt 0:2:24]} Qf4 {[%emt 0:1:51]} 21. Re1 {[%emt 0:1:17]} h5 {[%emt 0:11:30]} 22. Nf1 {[%emt 0:15:51]} h4 {[%emt 0:3:2]} 23. Qd3 {[%emt 0:5:59]} Kh8 {[%emt 0:11:17]} 24. h3 {[%emt 0:8:29]} Rg8 {[%emt 0:7:1]} 25. Kh1 {[%emt 0:0:35]} Ne7 {[%emt 0:16:39]} 26. b5 {[%emt 0:5:43]} Rg6 {[%emt 0:8:56]} 27. bxa6 {[%emt 0:5:1]} bxa6 {[%emt 0:0:8]} 28. Qxa6 {[%emt 0:2:5]} Bxd4 {[%emt 0:2:7]} 29. Qb5 {[%emt 0:0:42]} Bf6 {[%emt 0:10:20]} 30. Rxe7 {[%emt 0:3:32]} Bxe7 {[%emt 0:0:10]} 31. Qe8+ {[%emt 0:0:12]} Kg7 {[%emt 0:0:59]} 32. Qxe7 {[%emt 0:0:21]} Re6 {[%emt 0:0:37]} 33. Qc5 {[%emt 0:3:22]} Qc1 {[%emt 0:1:37]} 34. Kg1 {[%emt 0:1:52]} c6 {[%emt 0:0:52]} 35. Nd4 {[%emt 0:1:51]} Re1 {[%emt 0:0:20]} 36. Nxf5+ {[%emt 0:0:9]} Kh7 {[%emt 0:0:10]} 37. N5e3 {[%emt 0:0:16]} 1-0

[Event "57th Biel Festival MTO 2024"]
[White "Hartmann,Wolfgang"]
[Black "Toktomushev,Teimur"]
[Site "Biel"]
[Round "1.52"]
[Annotator "RC"]
[Result "0-1"]
[Date "2024.07.15"]
[WhiteElo "1983"]
[BlackElo "2300"]
[PlyCount "78"]
[TimeControl "60"]

1. c4 {[%emt 0:0:5]} e6 {[%emt 0:0:7]} 2. g3 {[%emt 0:0:28]} d5 {[%emt 0:0:30]} 3. Bg2 {[%emt 0:0:30]} Nf6 {[%emt 0:0:0]} 4. Nf3 {[%emt 0:0:0]} Be7 {[%emt 0:0:14]} 5. O-O {[%emt 0:0:15]} O-O {[%emt 0:0:15]} 6. b3 {[%emt 0:0:19]} c5 {[%emt 0:3:44]} 7. e3 {[%emt 0:1:24]} Nc6 {[%emt 0:2:14]} 8. Bb2 {[%emt 0:1:55]} b6 {[%emt 0:7:33]} 9. Re1 {[%emt 0:6:35]} Ba6 {[%emt 0:10:56]} 10. d3 {[%emt 0:8:0]} Qc7 {[%emt 0:0:30]} 11. a3 {[%emt 0:0:30]} Rfd8 {[%emt 0:0:30]} 12. Qc2 {[%emt 0:0:30]} Rd7 {[%emt 0:0:30]} 13. Nc3 {[%emt 0:0:30]} Rad8 {[%emt 0:0:30]} 14. Rad1 {[%emt 0:0:30]} Qb8 {[%emt 0:0:30]} 15. Rd2 {[%emt 0:0:30]} Bb7 {[%emt 0:0:30]} 16. cxd5 {[%emt 0:0:30]} Nxd5 {[%emt 0:0:30]} 17. Nxd5 {[%emt 0:0:30]} Rxd5 {[%emt 0:0:30]} 18. Red1 {[%emt 0:0:30]} Qa8 {[%emt 0:0:30]} 19. h4 {[%emt 0:0:30]} R5d7 {[%emt 0:0:30]} 20. Ng5 {[%emt 0:0:30]} h6 {[%emt 0:0:30]} 21. Ne4 {[%emt 0:0:30]} f5 {[%emt 1:9:11]} 22. Qc4 {[%emt 1:23:4]} Rd5 {[%emt 0:0:30]} 23. Nc3 {[%emt 0:0:30]} Ne5 {[%emt 0:0:30]} 24. Nxd5 {[%emt 0:0:30]} Nxc4 {[%emt 0:0:30]} 25. Nxe7+ {[%emt 0:0:30]} Kf7 {[%emt 0:0:30]} 26. Bxb7 {[%emt 0:0:30]} Qxb7 {[%emt 0:0:30]} 27. dxc4 {[%emt 0:0:30]} Rxd2 {[%emt 0:0:30]} 28. Rxd2 {[%emt 0:0:30]} Qxe7 {[%emt 0:0:30]} 29. Bc3 {[%emt 0:0:30]} g5 {[%emt 0:0:30]} 30. hxg5 {[%emt 0:0:30]} hxg5 {[%emt 0:0:30]} 31. Be5 {[%emt 0:0:30]} Qb7 {[%emt 0:0:30]} 32. Kh2 {[%emt 0:0:30]} Kg6 {[%emt 0:0:30]} 33. Rd6 {[%emt 0:0:30]} Kh5 {[%emt 0:0:30]} 34. Rd2 {[%emt 0:0:30]} Kg4 {[%emt 0:0:30]} 35. Bc3 {[%emt 0:0:30]} Kf3 {[%emt 0:0:30]} 36. g4 {[%emt 0:3:19]} Kxg4 {[%emt 0:8:34]} 37. e4 {[%emt 0:0:33]} Kf3 {[%emt 0:0:39]} 38. Bf6 {[%emt 0:0:32]} Qxe4 {[%emt 0:0:27]} 39. Bxg5 {[%emt 0:0:0]} Qb1 {[%emt 0:0:0]} 0-1

[Event "57th Biel Festival MTO 2024"]
[White "Shoshin,Kirill"]
[Black "Hornung,Hans"]
[Site "Biel"]
[Round "1.53"]
[Annotator "RC"]
[Result "1-0"]
[Date "2024.07.15"]
[WhiteElo "2277"]
[BlackElo "2009"]
[PlyCount "39"]
[TimeControl "60"]

1. d4 {[%emt 0:0:9]} Nf6 {[%emt 0:0:8]} 2. c4 {[%emt 0:0:9]} e6 {[%emt 0:0:9]} 3. Nc3 {[%emt 0:0:7]} Bb4 {[%emt 0:0:8]} 4. e3 {[%emt 0:0:12]} b6 {[%emt 0:0:27]} 5. Nge2 {[%emt 0:0:16]} c5 {[%emt 0:0:35]} 6. a3 {[%emt 0:4:46]} Ba5 {[%emt 0:0:17]} 7. Nf4 {[%emt 0:8:52]} Bxc3+ {[%emt 0:11:43]} 8. bxc3 {[%emt 0:0:4]} O-O {[%emt 0:1:34]} 9. Bd3 {[%emt 0:3:27]} Nc6 {[%emt 0:3:25]} 10. O-O {[%emt 0:1:39]} Ba6 {[%emt 0:1:37]} 11. Re1 {[%emt 0:17:0]} Na5 {[%emt 0:10:51]} 12. e4 {[%emt 0:8:27]} Bxc4 {[%emt 0:7:10]} 13. e5 {[%emt 0:0:5]} Ne8 {[%emt 0:0:13]} 14. Bxh7+ {[%emt 0:19:5]} Kxh7 {[%emt 0:0:11]} 15. Qh5+ {[%emt 0:0:4]} Kg8 {[%emt 0:0:27]} 16. Re3 {[%emt 0:0:4]} f5 {[%emt 0:4:18]} 17. Ng6 {[%emt 0:7:21]} Nf6 {[%emt 0:1:13]} 18. exf6 {[%emt 0:0:26]} Qxf6 {[%emt 0:5:46]} 19. Rh3 {[%emt 0:0:13]} cxd4 {[%emt 0:7:31]} 20. Bg5 {[%emt 0:0:15]} 1-0

[Event "57th Biel Festival MTO 2024"]
[White "Mata,Adilson"]
[Black "Cervantes Landeiro,Thalia"]
[Site "Biel"]
[Round "1.54"]
[Annotator "RC"]
[Result "1/2-1/2"]
[Date "2024.07.15"]
[WhiteElo "1971"]
[BlackElo "2271"]
[PlyCount "76"]
[TimeControl "60"]

1. d4 {[%emt 0:0:3]} Nf6 {[%emt 0:0:7]} 2. Nf3 {[%emt 0:0:12]} g6 {[%emt 0:0:9]} 3. g3 {[%emt 0:0:45]} Bg7 {[%emt 0:0:11]} 4. Bg2 {[%emt 0:0:17]} d5 {[%emt 0:0:13]} 5. O-O {[%emt 0:0:46]} O-O {[%emt 0:0:10]} 6. c4 {[%emt 0:0:13]} dxc4 {[%emt 0:0:15]} 7. Na3 {[%emt 0:2:22]} c3 {[%emt 0:0:21]} 8. bxc3 {[%emt 0:1:25]} c5 {[%emt 0:0:20]} 9. Ne5 {[%emt 0:6:18]} Nc6 {[%emt 0:5:20]} 10. Nxc6 {[%emt 0:5:25]} bxc6 {[%emt 0:0:41]} 11. Bxc6 {[%emt 0:12:23]} Bh3 {[%emt 0:0:38]} 12. Re1 {[%emt 0:0:36]} Rc8 {[%emt 0:9:11]} 13. Bf3 {[%emt 0:4:59]} Nd5 {[%emt 0:19:2]} 14. Bb2 {[%emt 0:2:15]} cxd4 {[%emt 0:4:11]} 15. cxd4 {[%emt 0:1:27]} Qa5 {[%emt 0:8:42]} 16. Qd3 {[%emt 0:10:43]} Rfd8 {[%emt 0:5:33]} 17. Rec1 {[%emt 0:5:5]} Rxc1+ {[%emt 0:6:41]} 18. Rxc1 {[%emt 0:0:50]} Bh6 {[%emt 0:8:39]} 19. Nc4 {[%emt 0:14:56]} Qb5 {[%emt 0:7:34]} 20. a4 {[%emt 0:17:10]} Qxa4 {[%emt 0:4:34]} 21. Ra1 {[%emt 0:0:11]} Qb5 {[%emt 0:5:40]} 22. Ba3 {[%emt 0:6:46]} e6 {[%emt 0:3:41]} 23. Bc5 {[%emt 0:2:28]} a6 {[%emt 0:3:55]} 24. Ra5 {[%emt 0:1:21]} Qb7 {[%emt 0:2:59]} 25. Nb6 {[%emt 0:2:15]} Qc7 {[%emt 0:2:18]} 26. Qxa6 {[%emt 0:2:10]} Rb8 {[%emt 0:8:25]} 27. Bxd5 {[%emt 0:3:6]} exd5 {[%emt 0:0:12]} 28. Qa7 {[%emt 0:0:13]} Qd8 {[%emt 0:1:42]} 29. Qxb8 {[%emt 0:2:19]} Qxb8 {[%emt 0:0:9]} 30. Ra8 {[%emt 0:0:7]} Qxa8 {[%emt 0:0:13]} 31. Nxa8 {[%emt 0:0:5]} Be6 {[%emt 0:0:13]} 32. e3 {[%emt 0:2:4]} Bg5 {[%emt 0:0:40]} 33. Kf1 {[%emt 0:1:44]} Bd8 {[%emt 0:0:43]} 34. Bb6 {[%emt 0:0:38]} Be7 {[%emt 0:0:21]} 35. Nc7 {[%emt 0:1:37]} Bd6 {[%emt 0:1:20]} 36. Nb5 {[%emt 0:0:21]} Bb8 {[%emt 0:1:24]} 37. Bc5 {[%emt 0:0:32]} f5 {[%emt 0:0:42]} 38. Bd6 {[%emt 0:0:41]} Bd7 {[%emt 0:0:18]} 1/2-1/2

[Event "57th Biel Festival MTO 2024"]
[White "Saravanan,V.."]
[Black "Tkhoruk,Roman"]
[Site "Biel"]
[Round "1.55"]
[Annotator "RC"]
[Result "1-0"]
[Date "2024.07.15"]
[WhiteElo "2266"]
[BlackElo "1944"]
[PlyCount "55"]
[TimeControl "60"]

1. d4 {[%emt 0:0:4]} Nf6 {[%emt 0:0:20]} 2. c4 {[%emt 0:0:5]} e6 {[%emt 0:0:45]} 3. Nc3 {[%emt 0:0:6]} b6 {[%emt 0:0:49]} 4. e4 {[%emt 0:1:43]} d6 {[%emt 0:3:42]} 5. Nf3 {[%emt 0:0:32]} Bb7 {[%emt 0:0:41]} 6. Bd3 {[%emt 0:0:36]} Be7 {[%emt 0:0:40]} 7. O-O {[%emt 0:0:44]} O-O {[%emt 0:0:17]} 8. Re1 {[%emt 0:0:55]} Nbd7 {[%emt 0:3:18]} 9. e5 {[%emt 0:12:1]} dxe5 {[%emt 0:4:43]} 10. dxe5 {[%emt 0:0:33]} Ne8 {[%emt 0:2:21]} 11. Bc2 {[%emt 0:5:1]} Nc5 {[%emt 0:8:35]} 12. Qe2 {[%emt 0:0:44]} a5 {[%emt 0:2:44]} 13. Bf4 {[%emt 0:0:51]} Qb8 {[%emt 0:1:51]} 14. Ng5 {[%emt 0:5:0]} Bxg5 {[%emt 0:5:15]} 15. Bxg5 {[%emt 0:0:22]} f5 {[%emt 0:3:1]} 16. Rad1 {[%emt 0:9:18]} Qa7 {[%emt 0:3:32]} 17. Rd4 {[%emt 0:3:58]} h6 {[%emt 0:2:38]} 18. Bc1 {[%emt 0:7:11]} Rc8 {[%emt 0:3:40]} 19. Qh5 {[%emt 0:5:49]} Rf7 {[%emt 0:10:56]} 20. Re3 {[%emt 0:4:44]} Qa8 {[%emt 0:5:32]} 21. Rg3 {[%emt 0:5:23]} Kf8 {[%emt 0:2:48]} 22. Bxh6 {[%emt 0:2:26]} gxh6 {[%emt 0:0:41]} 23. Qxh6+ {[%emt 0:0:6]} Ng7 {[%emt 0:3:3]} 24. Rh4 {[%emt 0:2:39]} Ne4 {[%emt 0:11:8]} 25. Nxe4 {[%emt 0:15:54]} Bxe4 {[%emt 0:0:55]} 26. Bxe4 {[%emt 0:0:5]} fxe4 {[%emt 0:0:31]} 27. Rf4 {[%emt 0:0:9]} Rxf4 {[%emt 0:10:43]} 28. Rxg7 {[%emt 0:0:18]} 1-0

[Event "57th Biel Festival MTO 2024"]
[White "Udelnov,Valentin"]
[Black "Nurman,Alua"]
[Site "Biel"]
[Round "1.56"]
[Annotator "RC"]
[Result "0-1"]
[Date "2024.07.15"]
[WhiteElo "1965"]
[BlackElo "2274"]
[PlyCount "68"]
[TimeControl "60"]

1. e4 {[%emt 0:0:3]} c5 {[%emt 0:0:10]} 2. Nf3 {[%emt 0:0:3]} d6 {[%emt 0:0:5]} 3. d4 {[%emt 0:0:3]} cxd4 {[%emt 0:0:5]} 4. Nxd4 {[%emt 0:0:4]} Nf6 {[%emt 0:0:5]} 5. Nc3 {[%emt 0:0:5]} a6 {[%emt 0:0:4]} 6. Bc4 {[%emt 0:0:5]} e6 {[%emt 0:0:21]} 7. a4 {[%emt 0:0:5]} Nxe4 {[%emt 0:9:24]} 8. Nxe4 {[%emt 0:1:33]} d5 {[%emt 0:0:7]} 9. Bg5 {[%emt 0:23:58]} Be7 {[%emt 0:27:49]} 10. Bxe7 {[%emt 0:12:34]} Qxe7 {[%emt 0:0:15]} 11. Bb5+ {[%emt 0:0:46]} axb5 {[%emt 0:1:3]} 12. Nxb5 {[%emt 0:0:15]} O-O {[%emt 0:8:14]} 13. Nec3 {[%emt 0:0:31]} Nc6 {[%emt 0:2:12]} 14. O-O {[%emt 0:0:25]} Rd8 {[%emt 0:2:6]} 15. f4 {[%emt 0:8:34]} e5 {[%emt 0:13:27]} 16. fxe5 {[%emt 0:2:46]} d4 {[%emt 0:1:4]} 17. Ne4 {[%emt 0:4:10]} Nxe5 {[%emt 0:1:33]} 18. Nf2 {[%emt 0:20:21]} Qg5 {[%emt 0:13:54]} 19. Re1 {[%emt 0:6:30]} Bd7 {[%emt 0:2:40]} 20. h4 {[%emt 0:9:41]} Qf6 {[%emt 0:5:52]} 21. Nxd4 {[%emt 0:8:22]} Bxa4 {[%emt 0:4:7]} 22. b3 {[%emt 0:8:40]} Rxd4 {[%emt 0:2:23]} 23. Qe2 {[%emt 0:1:5]} Re8 {[%emt 0:5:6]} 24. bxa4 {[%emt 0:0:34]} Qxh4 {[%emt 0:2:30]} 25. c3 {[%emt 0:0:49]} Rdd8 {[%emt 0:1:20]} 26. Qb5 {[%emt 0:0:55]} Qg3 {[%emt 0:3:10]} 27. Qxb7 {[%emt 0:0:27]} Rd2 {[%emt 0:0:50]} 28. Rf1 {[%emt 0:0:33]} f5 {[%emt 0:0:51]} 29. Rae1 {[%emt 0:0:29]} Qxc3 {[%emt 0:2:15]} 30. Ng4 {[%emt 0:0:30]} Qd4+ {[%emt 0:0:20]} 31. Nf2 {[%emt 0:0:31]} Rb2 {[%emt 0:0:47]} 32. Qc7 {[%emt 0:0:29]} g6 {[%emt 0:1:8]} 33. Rd1 {[%emt 0:0:16]} Qf4 {[%emt 0:0:34]} 34. a5 {[%emt 0:0:43]} Nf3+ {[%emt 0:0:6]} 0-1

[Event "57th Biel Festival MTO 2024"]
[White "Peycheva,Gergana"]
[Black "Pouly,Ivan"]
[Site "Biel"]
[Round "1.57"]
[Annotator "RC"]
[Result "1-0"]
[Date "2024.07.15"]
[WhiteElo "2266"]
[BlackElo "1958"]
[PlyCount "103"]
[TimeControl "60"]

1. d4 {[%emt 0:0:4]} Nf6 {[%emt 0:0:3]} 2. c4 {[%emt 0:0:30]} e6 {[%emt 0:0:6]} 3. Nc3 {[%emt 0:0:15]} d5 {[%emt 0:0:4]} 4. cxd5 {[%emt 0:0:44]} exd5 {[%emt 0:0:7]} 5. Bg5 {[%emt 0:0:23]} c6 {[%emt 0:0:18]} 6. e3 {[%emt 0:0:14]} Be7 {[%emt 0:0:31]} 7. Bd3 {[%emt 0:0:37]} Nbd7 {[%emt 0:0:36]} 8. Qc2 {[%emt 0:0:46]} O-O {[%emt 0:0:56]} 9. Nf3 {[%emt 0:1:16]} Re8 {[%emt 0:0:55]} 10. O-O {[%emt 0:1:18]} h6 {[%emt 0:3:4]} 11. Bf4 {[%emt 0:2:42]} Nh5 {[%emt 0:2:0]} 12. Nxd5 {[%emt 0:1:25]} Nxf4 {[%emt 0:1:3]} 13. Nxf4 {[%emt 0:5:1]} Nf6 {[%emt 0:4:50]} 14. Bc4 {[%emt 0:6:22]} Bd6 {[%emt 0:6:18]} 15. Ng6 {[%emt 0:14:24]} Qa5 {[%emt 0:5:10]} 16. Nge5 {[%emt 0:6:44]} Be6 {[%emt 0:1:24]} 17. Bxe6 {[%emt 0:8:21]} Rxe6 {[%emt 0:0:14]} 18. Nc4 {[%emt 0:0:5]} Qc7 {[%emt 0:1:16]} 19. Nxd6 {[%emt 0:0:9]} Qxd6 {[%emt 0:0:8]} 20. Rfe1 {[%emt 0:1:42]} Qd5 {[%emt 0:2:17]} 21. Qc5 {[%emt 0:5:20]} Qxc5 {[%emt 0:1:48]} 22. dxc5 {[%emt 0:0:6]} a5 {[%emt 0:0:8]} 23. Red1 {[%emt 0:2:12]} Ne4 {[%emt 0:8:51]} 24. Rac1 {[%emt 0:1:41]} a4 {[%emt 0:11:18]} 25. Rd7 {[%emt 0:2:59]} Ra5 {[%emt 0:0:43]} 26. Rxb7 {[%emt 0:4:20]} Nxc5 {[%emt 0:2:17]} 27. Rb6 {[%emt 0:2:42]} Rd6 {[%emt 0:8:1]} 28. Ne5 {[%emt 0:12:29]} Rb5 {[%emt 0:14:25]} 29. Rxb5 {[%emt 0:4:42]} cxb5 {[%emt 0:0:18]} 30. Kf1 {[%emt 0:2:33]} Rd5 {[%emt 0:7:37]} 31. Nc6 {[%emt 0:2:37]} Kf8 {[%emt 0:0:43]} 32. Nb4 {[%emt 0:5:12]} Re5 {[%emt 0:0:22]} 33. Ke2 {[%emt 0:8:45]} Ne6 {[%emt 0:4:56]} 34. Rc8+ {[%emt 0:1:8]} Ke7 {[%emt 0:0:2]} 35. Nc6+ {[%emt 0:1:13]} Kd7 {[%emt 0:0:4]} 36. Nxe5+ {[%emt 0:0:6]} Kxc8 {[%emt 0:0:12]} 37. Nxf7 {[%emt 0:0:16]} Kc7 {[%emt 0:0:22]} 38. Kd3 {[%emt 0:1:10]} Kc6 {[%emt 0:0:43]} 39. f4 {[%emt 0:2:59]} Kd5 {[%emt 0:1:7]} 40. e4+ {[%emt 0:1:4]} Kc5 {[%emt 0:0:7]} 41. g3 {[%emt 0:50:31]} b4 {[%emt 0:50:58]} 42. f5 {[%emt 0:3:5]} Nd4 {[%emt 0:0:34]} 43. Nd8 {[%emt 0:1:17]} Nf3 {[%emt 0:1:29]} 44. Ne6+ {[%emt 0:0:19]} Kd6 {[%emt 0:0:16]} 45. Nxg7 {[%emt 0:0:0]} Nxh2 {[%emt 0:0:0]} 46. Kc4 {[%emt 0:0:0]} b3 {[%emt 0:0:0]} 47. axb3 {[%emt 0:0:0]} axb3 {[%emt 0:0:0]} 48. Kxb3 {[%emt 0:0:0]} Nf1 {[%emt 0:0:0]} 49. Kc3 {[%emt 0:0:0]} Nxg3 {[%emt 0:0:0]} 50. Kd4 {[%emt 0:0:0]} h5 {[%emt 0:0:0]} 51. e5+ {[%emt 0:0:0]} Kd7 {[%emt 0:0:0]} 52. f6 {[%emt 0:0:0]} 1-0

[Event "57th Biel Festival MTO 2024"]
[White "Stevens,Christian"]
[Black "Collin,Moritz Valentin"]
[Site "Biel"]
[Round "1.58"]
[Annotator "RC"]
[Result "0-1"]
[Date "2024.07.15"]
[WhiteElo "2253"]
[BlackElo "2312"]
[PlyCount "70"]
[TimeControl "60"]

1. e4 {[%emt 0:0:4]} c5 {[%emt 0:0:4]} 2. Nc3 {[%emt 0:0:11]} Nc6 {[%emt 0:0:5]} 3. g3 {[%emt 0:0:10]} g6 {[%emt 0:0:6]} 4. Bg2 {[%emt 0:0:7]} Bg7 {[%emt 0:0:6]} 5. d3 {[%emt 0:0:7]} d6 {[%emt 0:0:5]} 6. f4 {[%emt 0:1:42]} e6 {[%emt 0:0:9]} 7. Nf3 {[%emt 0:0:5]} Nge7 {[%emt 0:0:6]} 8. O-O {[%emt 0:0:14]} O-O {[%emt 0:0:10]} 9. Be3 {[%emt 0:0:19]} b6 {[%emt 0:0:18]} 10. g4 {[%emt 0:8:5]} f5 {[%emt 0:3:41]} 11. h3 {[%emt 0:0:10]} d5 {[%emt 0:14:7]} 12. Bc1 {[%emt 0:24:35]} dxe4 {[%emt 0:13:6]} 13. dxe4 {[%emt 0:0:14]} Ba6 {[%emt 0:1:36]} 14. Re1 {[%emt 0:8:20]} fxg4 {[%emt 0:7:9]} 15. hxg4 {[%emt 0:1:17]} Qxd1 {[%emt 0:7:56]} 16. Rxd1 {[%emt 0:4:15]} Nb4 {[%emt 0:3:5]} 17. Ne1 {[%emt 0:6:13]} Bd4+ {[%emt 0:2:6]} 18. Kh2 {[%emt 0:0:59]} Rad8 {[%emt 0:10:7]} 19. a3 {[%emt 0:7:25]} Nbc6 {[%emt 0:0:43]} 20. Nd3 {[%emt 0:7:22]} g5 {[%emt 0:11:12]} 21. f5 {[%emt 0:7:37]} c4 {[%emt 0:4:30]} 22. Nb4 {[%emt 0:1:38]} Bxc3 {[%emt 0:2:33]} 23. Rxd8 {[%emt 0:6:23]} Be5+ {[%emt 0:0:18]} 24. Kh3 {[%emt 0:0:22]} Rxd8 {[%emt 0:0:53]} 25. Bxg5 {[%emt 0:0:51]} Bb7 {[%emt 0:5:58]} 26. f6 {[%emt 0:9:6]} Rd7 {[%emt 0:5:26]} 27. fxe7 {[%emt 0:0:26]} Nxe7 {[%emt 0:0:6]} 28. Rb1 {[%emt 0:6:57]} Ng6 {[%emt 0:2:37]} 29. b3 {[%emt 0:1:21]} a5 {[%emt 0:2:52]} 30. Na2 {[%emt 0:0:8]} Bf4 {[%emt 0:2:58]} 31. Bf6 {[%emt 0:1:58]} Rd2 {[%emt 0:1:15]} 32. g5 {[%emt 0:3:50]} h5 {[%emt 0:3:11]} 33. gxh6 {[%emt 0:0:43]} Rxc2 {[%emt 0:1:0]} 34. Rd1 {[%emt 0:0:55]} cxb3 {[%emt 0:1:30]} 35. Rd8+ {[%emt 0:0:59]} Kf7 {[%emt 0:1:52]} 0-1